bitfinex/quotes_BTCUSD_20251015
["timestamp","ask_amount","ask_price","bid_price","bid_amount"]
[1760536472759,1e-08,111540.0,111530.0,0.17932394]
[1760536472956,5.004e-05,111540.0,111530.0,7.25484127]
[1760536473768,5.004e-05,111540.0,111530.0,7.13708127]
[1760536473975,5.004e-05,111540.0,111530.0,2.25480127]
[1760536474175,5.004e-05,111540.0,111530.0,1.74094657]
[1760536474412,5.004e-05,111540.0,111530.0,1.85866657]
[1760536474909,5.004e-05,111540.0,111530.0,1.74294657]
[1760536475576,5.004e-05,111540.0,111530.0,1.89684885]
[1760536475797,5.004e-05,111540.0,111530.0,2.13908127]
[1760536476011,5.004e-05,111540.0,111530.0,7.25680127]
[1760536476697,5.004e-05,111540.0,111530.0,7.13908127]
[1760536476910,0.022483,111550.0,111540.0,0.55549015]
[1760536477119,0.022483,111550.0,111540.0,1.49179278]
[1760536478047,0.022483,111550.0,111540.0,1.4556105]
[1760536478272,0.022483,111550.0,111540.0,0.26899799]
[1760536478482,0.022483,111550.0,111540.0,0.67099799]
[1760536478701,0.022483,111550.0,111540.0,0.78867799]
[1760536478914,0.022483,111550.0,111540.0,0.67099799]
[1760536479155,0.022483,111550.0,111540.0,0.78867799]
[1760536479370,0.022483,111550.0,111540.0,1.3979305]
[1760536479592,0.55673118,111580.0,111560.0,0.17927572]
[1760536479593,0.25996244,111580.0,111560.0,0.17927572]
[1760536479803,0.25996244,111580.0,111570.0,0.38662977]
[1760536479804,0.0722523,111580.0,111570.0,0.38662977]
[1760536480017,0.0722523,111580.0,111570.0,0.08969012]
[1760536480226,0.17974379,111580.0,111570.0,0.08969012]
[1760536480439,0.17974379,111580.0,111570.0,0.20737012]
[1760536480666,0.17974379,111580.0,111570.0,0.08969012]
[1760536481089,0.17974379,111580.0,111570.0,0.20733012]
[1760536481300,0.17974379,111580.0,111570.0,0.08969012]
[1760536481934,0.17974379,111580.0,111570.0,0.20733012]
[1760536482139,0.21592607,111580.0,111570.0,0.20733012]
[1760536482347,0.55592607,111580.0,111570.0,0.08969012]
[1760536484389,0.21544193,111570.0,111560.0,0.11764]
[1760536484639,0.17930215,111550.0,111540.0,0.08969012]
[1760536484863,0.17930215,111550.0,111540.0,0.20729012]
[1760536485084,0.17930215,111550.0,111540.0,0.08969012]
[1760536485307,0.17930215,111550.0,111540.0,0.20729012]
[1760536485540,0.17930215,111550.0,111540.0,0.08969012]
[1760536486209,0.17930215,111550.0,111540.0,0.20729012]
[1760536487353,0.17930215,111550.0,111540.0,0.08969012]
[1760536487567,0.17930215,111550.0,111540.0,0.20729012]
[1760536487783,0.3189824,111550.0,111540.0,0.08969012]
[1760536488019,0.49828455,111550.0,111540.0,0.08969012]
[1760536488251,0.53446683,111550.0,111540.0,0.08969012]
[1760536490424,0.17935262,111520.0,111500.0,0.57937219]
[1760536490713,0.17935262,111520.0,111510.0,0.08969012]
[1760536491138,0.17935262,111520.0,111510.0,0.20725012]
[1760536491353,0.17935262,111520.0,111510.0,0.08969012]
[1760536491572,0.17935262,111520.0,111510.0,0.08974015]
[1760536491786,0.18831327,111530.0,111510.0,0.08974015]
[1760536491999,0.18831327,111530.0,111510.0,0.26909579]
[1760536492000,0.17932405,111530.0,111510.0,0.26909579]
[1760536492214,0.17933653,111540.0,111520.0,0.11756]
[1760536492429,0.19211995,111530.0,111520.0,0.002448]
[1760536492635,0.17932421,111530.0,111520.0,0.20969812]
[1760536492848,0.17932394,111530.0,111520.0,0.08969012]
[1760536493056,0.17932394,111530.0,111520.0,0.20725012]
[1760536493286,0.17932394,111530.0,111520.0,0.08969012]
[1760536493752,0.50724913,111550.0,111530.0,0.1793232]
[1760536493977,0.18826673,111550.0,111540.0,0.08969012]
[1760536494467,0.18826232,111560.0,111540.0,0.20725012]
[1760536494665,0.18826232,111560.0,111540.0,0.08969012]
[1760536494877,0.52826232,111560.0,111550.0,0.11756]
[1760536495089,0.17929179,111550.0,111530.0,0.18828939]
[1760536495345,0.17929179,111550.0,111540.0,0.20725012]
[1760536495571,0.17929179,111550.0,111540.0,0.08969012]
[1760536496247,0.17929179,111550.0,111540.0,0.20725012]
[1760536496467,0.17929179,111550.0,111540.0,0.08969012]
[1760536496720,0.00233816,111550.0,111540.0,0.0904971]
[1760536496986,0.00233816,111550.0,111540.0,0.38732497]
[1760536497199,0.00233816,111550.0,111540.0,0.38651799]
[1760536497838,0.00033816,111550.0,111540.0,0.38651799]
[1760536498044,0.00033816,111550.0,111540.0,0.85716411]
[1760536498256,0.17925584,111580.0,111550.0,0.17927789]
[1760536498462,0.17975604,111580.0,111560.0,0.38648435]
[1760536498911,0.17925965,111570.0,111560.0,0.20721012]
[1760536499113,0.15125604,111580.0,111560.0,0.26896584]
[1760536499325,0.15125604,111580.0,111570.0,0.11752]
[1760536499530,0.27964686,111590.0,111570.0,0.08969012]
[1760536499737,0.17924359,111580.0,111560.0,0.17926273]
[1760536499952,0.17929179,111550.0,111540.0,0.001]
[1760536500164,0.17929179,111550.0,111540.0,0.20821012]
[1760536500379,0.17929179,111550.0,111540.0,0.08969012]
[1760536500601,0.17932394,111530.0,111520.0,0.04844]
[1760536500815,0.17934726,111520.0,111510.0,0.08969012]
[1760536501024,0.17934726,111520.0,111510.0,0.20717012]
[1760536501238,0.17934726,111520.0,111510.0,0.09019032]
[1760536501674,0.21552954,111520.0,111510.0,0.20767032]
[1760536501888,0.21552954,111520.0,111510.0,0.09019032]
[1760536502139,0.17934726,111520.0,111510.0,0.20767032]
[1760536502356,0.17934726,111520.0,111510.0,0.09019032]
[1760536502573,0.55550456,111540.0,111520.0,0.17934002]
[1760536502797,0.51932228,111540.0,111530.0,0.08969012]
[1760536503013,0.51932228,111540.0,111530.0,0.20717012]
[1760536503544,0.17975637,111550.0,111530.0,0.08969012]
[1760536503785,0.17987452,111560.0,111540.0,0.17930629]
[1760536504027,0.17987452,111560.0,111550.0,0.26898191]
[1760536504028,0.00058439,111560.0,111550.0,0.26898191]
[1760536504497,0.00058439,111560.0,111550.0,0.08969012]
[1760536504733,0.00058439,111560.0,111550.0,0.38678225]
[1760536504967,0.17986011,111560.0,111550.0,0.20717012]
[1760536505201,0.00058439,111560.0,111550.0,0.38696211]
[1760536505432,0.00058439,111560.0,111550.0,0.27048211]
[1760536505651,0.00058439,111560.0,111550.0,0.38796211]
[1760536506443,0.00058439,111560.0,111550.0,0.27048211]
[1760536506898,0.00058439,111560.0,111550.0,0.38692211]
[1760536507856,0.00058439,111560.0,111550.0,0.78792211]
[1760536510305,0.00058439,111560.0,111550.0,0.67048211]
[1760536510532,0.00058439,111560.0,111550.0,1.59852823]
[1760536510782,0.00058439,111560.0,111550.0,1.01048211]
[1760536510997,0.00058439,111560.0,111550.0,1.00948211]
[1760536511453,0.00058439,111560.0,111550.0,1.12788211]
[1760536511677,0.00058439,111560.0,111550.0,0.78788211]
[1760536512128,0.00013828,111560.0,111550.0,0.78788211]
[1760536512357,0.00013828,111560.0,111550.0,0.67048211]
[1760536512596,0.00013828,111560.0,111550.0,0.78788211]
[1760536512841,0.179414,111560.0,111550.0,0.20859032]
[1760536513028,0.1973747,111560.0,111550.0,0.09019032]
[1760536513311,0.1973747,111560.0,111550.0,0.09119032]
[1760536513558,0.1973747,111560.0,111550.0,0.20859032]
[1760536513790,0.1973747,111560.0,111550.0,0.09119032]
[1760536514275,0.179414,111560.0,111550.0,0.20755032]
[1760536514524,0.179414,111560.0,111550.0,0.09019032]
[1760536515010,0.179414,111560.0,111550.0,0.20755032]
[1760536515466,0.21559628,111560.0,111550.0,0.09019032]
[1760536515714,0.55559628,111560.0,111550.0,0.09019032]
[1760536515943,0.55559628,111560.0,111550.0,0.0005002]
[1760536516174,0.55895755,111560.0,111550.0,0.0005002]
[1760536516651,0.55559628,111560.0,111550.0,0.0005002]
[1760536517585,0.55895755,111560.0,111550.0,0.0005002]
[1760536518084,0.55895755,111560.0,111510.0,0.04844]
[1760536518085,0.17934002,111520.0,111510.0,0.04844]
[1760536518302,0.51934002,111520.0,111510.0,0.20710015]
[1760536518818,0.51934002,111520.0,111510.0,0.08974015]
[1760536519550,0.51934002,111520.0,111510.0,0.20710015]
[1760536520607,0.51934002,111520.0,111510.0,0.08974015]
[1760536520851,0.51934002,111520.0,111510.0,0.20706015]
[1760536521064,0.51934002,111520.0,111510.0,0.08974015]
[1760536521272,0.51934002,111520.0,111510.0,0.20706015]
[1760536521517,0.51934002,111520.0,111510.0,0.08974015]
[1760536521943,0.5555223,111520.0,111510.0,0.08974015]
[1760536523429,0.5555223,111520.0,111510.0,5.003e-05]
[1760536523874,0.55888375,111520.0,111510.0,5.003e-05]
[1760536524508,5.55888375,111520.0,111510.0,5.003e-05]
[1760536524731,5.57977278,111520.0,111510.0,5.003e-05]
[1760536525842,0.17946925,111440.0,111410.0,0.0719521]
[1760536526050,0.17946925,111440.0,111430.0,0.0717521]
[1760536526262,0.34,111450.0,111430.0,0.08969012]
[1760536526471,0.51945305,111450.0,111440.0,0.08969012]
[1760536527334,0.55563533,111450.0,111440.0,0.08969012]
[1760536527757,0.1884327,111460.0,111440.0,0.08969012]
[1760536527993,0.34,111460.0,111450.0,0.17972493]
[1760536528211,0.18846246,111470.0,111450.0,0.26914172]
[1760536528420,0.51942584,111470.0,111460.0,0.08969012]
[1760536528627,0.17942584,111470.0,111460.0,0.08969012]
[1760536528840,0.51942584,111470.0,111460.0,0.08969012]
[1760536529348,0.51942584,111470.0,111460.0,0.08984022]
[1760536530195,0.55560812,111470.0,111460.0,0.0001501]
[1760536531038,0.55896958,111470.0,111460.0,0.0001501]
[1760536531247,0.55560812,111470.0,111460.0,0.0001501]
[1760536531679,0.51942584,111470.0,111460.0,0.08984022]
[1760536533797,0.18892045,111490.0,111460.0,0.2782486]
[1760536534009,0.53736516,111480.0,111470.0,0.08969012]
[1760536534241,0.51940446,111480.0,111470.0,0.08969012]
[1760536535475,0.51940437,111480.0,111470.0,0.08969012]
[1760536536114,0.34,111480.0,111470.0,0.27000774]
[1760536536328,0.51940437,111480.0,111470.0,0.08969012]
[1760536536544,0.51940437,111480.0,111470.0,0.20697012]
[1760536536771,0.51940437,111480.0,111470.0,0.09069012]
[1760536537202,0.55558665,111480.0,111470.0,0.09069012]
[1760536537442,0.55560275,111470.0,111460.0,0.0001501]
[1760536537654,0.55560275,111470.0,111460.0,0.08984022]
[1760536539117,0.51948487,111430.0,111420.0,0.0039583]
[1760536539344,0.55566715,111430.0,111420.0,0.00445903]
[1760536539600,0.55566715,111430.0,111420.0,0.00050073]
[1760536539601,0.55902862,111430.0,111420.0,0.00050073]
[1760536541095,0.55566715,111430.0,111420.0,0.09019085]
[1760536542518,0.55366715,111430.0,111420.0,0.09019085]
[1760536543896,0.51948487,111430.0,111420.0,0.09019085]
[1760536544134,0.34,111430.0,111420.0,0.26969183]
[1760536544388,0.51948487,111430.0,111420.0,0.09019085]
[1760536544590,0.51948487,111430.0,111420.0,0.20917177]
[1760536544781,0.51948487,111430.0,111420.0,0.20743085]
[1760536544993,0.51948487,111430.0,111420.0,0.26969183]
[1760536545195,0.17946877,111440.0,111420.0,0.26969183]
[1760536545474,0.17946877,111440.0,111430.0,0.08969012]
[1760536545908,0.26014359,111470.0,111450.0,0.17944989]
[1760536546131,0.0717521,111470.0,111460.0,0.20693012]
[1760536546336,0.28765533,111490.0,111470.0,0.17941911]
[1760536546337,0.02749869,111490.0,111470.0,0.17941911]
[1760536546564,0.00051602,111490.0,111480.0,0.74096988]
[1760536546763,0.00051602,111490.0,111480.0,0.85698061]
[1760536546987,0.00051602,111490.0,111480.0,0.38633449]
[1760536547195,0.00051602,111490.0,111480.0,0.85698061]
[1760536547402,0.00051602,111490.0,111480.0,0.38633449]
[1760536547608,0.00051602,111490.0,111480.0,1.19698061]
[1760536547778,1e-08,111490.0,111480.0,6.58656901]
[1760536548249,1e-08,111490.0,111480.0,6.70380901]
[1760536548646,1e-08,111490.0,111480.0,6.11592289]
[1760536548900,1e-08,111490.0,111480.0,6.23416289]
[1760536549118,1e-08,111490.0,111480.0,1.19798061]
[1760536549347,1e-08,111490.0,111480.0,1.07974061]
[1760536549562,1e-08,111490.0,111480.0,1.08174061]
[1760536549783,1e-08,111490.0,111480.0,6.70376901]
[1760536550005,1e-08,111490.0,111480.0,6.23312289]
[1760536550217,1e-08,111490.0,111480.0,6.51792289]
[1760536550432,1e-08,111490.0,111480.0,1.63312289]
[1760536550652,1e-08,111490.0,111480.0,1.63512289]
[1760536550889,1e-08,111490.0,111480.0,7.10576901]
[1760536551076,1e-08,111490.0,111480.0,6.98856901]
[1760536551319,1e-08,111490.0,111480.0,7.10576901]
[1760536551734,0.26001678,111550.0,111520.0,0.17933606]
[1760536551735,0.19554613,111550.0,111520.0,0.17933606]
[1760536552005,0.19128429,111540.0,111530.0,0.08969012]
[1760536552218,0.17930787,111540.0,111530.0,0.20685012]
[1760536552649,0.17930787,111540.0,111530.0,0.60685012]
[1760536552861,0.17930787,111540.0,111530.0,0.48969012]
[1760536553071,0.18841467,111550.0,111530.0,0.60685012]
[1760536553274,0.17930787,111540.0,111530.0,0.48969012]
[1760536553466,0.17930787,111540.0,111530.0,0.60685012]
[1760536553763,0.17930787,111540.0,111530.0,0.48969012]
[1760536554268,0.17930787,111540.0,111530.0,0.60685012]
[1760536554724,0.17935131,111530.0,111520.0,0.08969012]
[1760536554934,0.34,111530.0,111520.0,0.26903014]
[1760536555137,0.34,111530.0,111520.0,0.66903014]
[1760536555344,0.18841467,111550.0,111530.0,0.17932394]
[1760536555552,0.18841467,111550.0,111540.0,0.08969012]
[1760536555553,0.52841467,111550.0,111540.0,0.08969012]
[1760536555779,0.18841467,111550.0,111540.0,0.08969012]
[1760536555983,0.52841467,111550.0,111540.0,0.08969012]
[1760536556824,0.52841467,111550.0,111540.0,0.08569012]
[1760536557651,0.51944178,111550.0,111540.0,0.26499799]
[1760536557867,0.00365753,111550.0,111540.0,0.38211799]
[1760536558300,0.00365753,111550.0,111540.0,0.73664411]
[1760536558510,0.00365753,111550.0,111540.0,0.38311799]
[1760536558722,0.00365753,111550.0,111540.0,0.78211799]
[1760536558927,0.00365753,111550.0,111540.0,1.25276411]
[1760536559139,0.00365753,111550.0,111540.0,1.13564411]
[1760536559382,0.00365753,111550.0,111540.0,1.13664411]
[1760536559808,0.00365753,111550.0,111540.0,1.85089489]
[1760536559810,0.00365753,111550.0,111540.0,1.00599799]
[1760536560025,0.01963365,111590.0,111580.0,0.17924359]
[1760536560216,0.01963365,111590.0,111580.0,0.26893371]
[1760536560217,0.02013388,111590.0,111580.0,0.26893371]
[1760536560416,0.02013388,111590.0,111580.0,0.38601371]
[1760536560581,0.02013388,111590.0,111580.0,0.66893371]
[1760536561154,0.02013388,111590.0,111580.0,0.78601371]
[1760536561391,0.1993614,111590.0,111580.0,0.60677012]
[1760536561602,0.1993614,111590.0,111580.0,0.08969012]
[1760536561813,0.17927815,111560.0,111540.0,0.17930781]
[1760536562021,0.17927815,111560.0,111550.0,0.08969012]
[1760536562662,0.51927815,111560.0,111550.0,0.08969012]
[1760536562871,0.55546043,111560.0,111550.0,0.08969012]
[1760536563088,0.55546043,111560.0,111510.0,0.17935611]
[1760536563089,0.17933569,111530.0,111510.0,0.17935611]
[1760536563300,0.17932394,111530.0,111520.0,0.39503714]
[1760536563532,0.17932147,111540.0,111520.0,0.39503714]
[1760536563759,0.17932147,111540.0,111530.0,0.00089661]
[1760536563967,0.51932147,111540.0,111530.0,0.20762673]
[1760536564182,0.51932147,111540.0,111530.0,0.20673012]
[1760536564408,0.51932147,111540.0,111530.0,0.20688011]
[1760536564626,0.51932147,111540.0,111530.0,0.08984011]
[1760536565109,0.55550375,111540.0,111530.0,0.00014999]
[1760536566888,5.55550375,111540.0,111530.0,0.00014999]
[1760536567965,0.17938828,111490.0,111480.0,0.4]
[1760536568244,0.51938945,111490.0,111480.0,0.08969012]
[1760536569425,0.55557173,111490.0,111480.0,0.08969012]
[1760536569672,0.17942047,111470.0,111460.0,0.04844]
[1760536569899,0.51942047,111470.0,111460.0,0.20669012]
[1760536570675,0.22454114,111490.0,111460.0,0.20669012]
[1760536570676,0.22454114,111490.0,111470.0,0.17940801]
[1760536570892,8.96e-05,111490.0,111480.0,0.38609449]
[1760536571550,8.96e-05,111490.0,111480.0,0.38709449]
[1760536571760,8.96e-05,111490.0,111480.0,0.09069012]
[1760536571972,0.17947788,111490.0,111480.0,0.09069012]
[1760536572177,0.19141108,111490.0,111480.0,0.20769012]
[1760536572386,0.51947788,111490.0,111480.0,0.08969012]
[1760536572637,0.3400896,111490.0,111480.0,0.20869012]
[1760536572875,0.51947788,111490.0,111480.0,0.20869012]
[1760536573118,0.51947788,111490.0,111480.0,0.38609449]
[1760536573353,0.51947788,111490.0,111480.0,0.20669012]
[1760536573593,0.51947788,111490.0,111480.0,0.20769012]
[1760536574664,0.51947788,111490.0,111480.0,0.20669012]
[1760536575498,0.51947788,111490.0,111480.0,0.20769012]
[1760536575705,0.51947788,111490.0,111480.0,0.09069012]
[1760536575915,0.51947788,111490.0,111480.0,0.001]
[1760536575916,0.55566016,111490.0,111480.0,0.001]
[1760536576135,0.17943656,111460.0,111440.0,0.17972373]
[1760536576347,0.17943656,111460.0,111450.0,0.38614278]
[1760536576557,0.17943656,111460.0,111450.0,0.08969012]
[1760536576785,0.51943656,111460.0,111450.0,0.08969012]
[1760536577221,0.51950098,111420.0,111410.0,0.0002]
[1760536577434,0.51950098,111420.0,111410.0,0.08552]
[1760536577659,0.51950098,111420.0,111410.0,0.1172]
[1760536577890,0.18847221,111440.0,111410.0,0.11899927]
[1760536578105,0.5284564,111450.0,111430.0,0.17948183]
[1760536578326,0.5284564,111450.0,111440.0,0.11786572]
[1760536578537,8.954e-05,111450.0,111440.0,0.29744837]
[1760536578771,8.954e-05,111450.0,111440.0,0.29646877]
[1760536579007,8.954e-05,111450.0,111440.0,0.17946877]
[1760536579254,8.954e-05,111450.0,111440.0,0.29646877]
[1760536579678,8.954e-05,111450.0,111440.0,0.29746877]
[1760536580437,8.954e-05,111450.0,111440.0,0.18046877]
[1760536580641,8.954e-05,111450.0,111440.0,0.29746877]
[1760536580843,8.954e-05,111450.0,111440.0,0.38615889]
[1760536581069,8.954e-05,111450.0,111440.0,0.78815889]
[1760536581228,8.954e-05,111450.0,111440.0,1.51597579]
[1760536581441,8.954e-05,111450.0,111440.0,0.78815889]
[1760536581639,8.954e-05,111450.0,111440.0,0.67115889]
[1760536581845,8.954e-05,111450.0,111440.0,0.78615889]
[1760536582288,8.954e-05,111450.0,111440.0,1.39897579]
[1760536582645,8.954e-05,111450.0,111440.0,1.77315807]
[1760536582859,8.954e-05,111450.0,111440.0,6.77315807]
[1760536583067,8.954e-05,111450.0,111440.0,1.77315807]
[1760536583272,8.954e-05,111450.0,111440.0,1.93863807]
[1760536583474,8.954e-05,111450.0,111440.0,1.82163807]
[1760536583679,8.954e-05,111450.0,111440.0,1.93863807]
[1760536583885,8.954e-05,111450.0,111440.0,1.93859807]
[1760536584100,8.954e-05,111450.0,111440.0,1.82163807]
[1760536584309,8.954e-05,111450.0,111440.0,1.21078117]
[1760536584719,8.954e-05,111450.0,111440.0,1.21178117]
[1760536584925,8.954e-05,111450.0,111440.0,1.93959807]
[1760536585133,8.954e-05,111450.0,111440.0,1.93859807]
[1760536585342,8.954e-05,111450.0,111440.0,6.93859807]
[1760536585559,8.954e-05,111450.0,111440.0,6.82663807]
[1760536585716,8.954e-05,111450.0,111440.0,6.94359807]
[1760536585918,8.954e-05,111450.0,111440.0,6.94159807]
[1760536586124,8.954e-05,111450.0,111440.0,6.82663807]
[1760536586339,8.954e-05,111450.0,111440.0,6.94359807]
[1760536586551,8.954e-05,111450.0,111440.0,1.82663807]
[1760536586756,8.954e-05,111450.0,111440.0,1.09882117]
[1760536586954,8.954e-05,111450.0,111440.0,1.21578117]
[1760536587140,8.954e-05,111450.0,111440.0,0.82730117]
[1760536587341,8.954e-05,111450.0,111440.0,0.67415889]
[1760536587543,8.954e-05,111450.0,111440.0,0.78911889]
[1760536587740,8.954e-05,111450.0,111440.0,0.78611889]
[1760536587968,0.11697945,111480.0,111460.0,0.17943517]
[1760536588242,0.0718418,111480.0,111470.0,0.26911059]
[1760536588502,8.97e-05,111480.0,111470.0,0.38607059]
[1760536588842,8.97e-05,111480.0,111470.0,0.26911059]
[1760536589066,8.97e-05,111480.0,111470.0,0.38607059]
[1760536589487,8.97e-05,111480.0,111470.0,0.26911059]
[1760536589642,8.97e-05,111480.0,111470.0,0.38807059]
[1760536590102,8.97e-05,111480.0,111470.0,0.09169012]
[1760536590254,0.17949407,111480.0,111470.0,0.09169012]
[1760536590466,0.17949407,111480.0,111470.0,0.20861012]
[1760536590876,0.17949407,111480.0,111470.0,0.09169012]
[1760536591104,0.17949407,111480.0,111470.0,0.20661012]
[1760536591310,0.17949407,111480.0,111470.0,0.20761012]
[1760536591534,0.17949407,111480.0,111470.0,0.09069012]
[1760536591743,0.17949407,111480.0,111470.0,0.11692]
[1760536592153,0.17949407,111480.0,111470.0,0.11792]
[1760536592357,0.17949407,111480.0,111470.0,0.09069012]
[1760536592577,0.17949407,111480.0,111470.0,0.20761012]
[1760536592775,0.51949407,111480.0,111470.0,0.20761012]
[1760536592979,0.51949407,111480.0,111470.0,0.09069012]
[1760536593185,0.51949407,111480.0,111470.0,0.20761012]
[1760536593615,0.51949407,111480.0,111470.0,0.09069012]
[1760536593873,0.17949407,111480.0,111470.0,0.27011059]
[1760536594084,0.17949407,111480.0,111470.0,0.38703059]
[1760536594320,8.97e-05,111480.0,111470.0,0.38703059]
[1760536594525,0.18783944,111480.0,111470.0,0.38703059]
[1760536594734,0.17949407,111480.0,111470.0,0.38703059]
[1760536595376,8.97e-05,111480.0,111470.0,0.27011059]
[1760536595585,0.00949707,111480.0,111470.0,0.38703059]
[1760536595812,8.97e-05,111480.0,111470.0,0.38703059]
[1760536596021,8.97e-05,111480.0,111470.0,0.27011059]
[1760536596221,8.97e-05,111480.0,111470.0,0.38703059]
[1760536597463,8.97e-05,111480.0,111470.0,0.27011059]
[1760536597727,8.97e-05,111480.0,111470.0,0.38703059]
[1760536598394,8.97e-05,111480.0,111470.0,0.38603059]
[1760536598551,8.97e-05,111480.0,111470.0,0.78603059]
[1760536598890,8.97e-05,111480.0,111470.0,0.78803059]
[1760536599104,8.97e-05,111480.0,111470.0,0.67111059]
[1760536599308,8.97e-05,111480.0,111470.0,0.78799059]
[1760536599925,8.97e-05,111480.0,111470.0,0.67111059]
[1760536600114,8.97e-05,111480.0,111470.0,0.78799059]
[1760536600366,0.17949407,111480.0,111470.0,0.60857012]
[1760536600581,8.97e-05,111480.0,111470.0,0.38799059]
[1760536600991,0.19745477,111480.0,111470.0,0.09169012]
[1760536601194,0.13591795,111490.0,111470.0,0.49169012]
[1760536601404,0.13591795,111490.0,111480.0,0.08969012]
[1760536601638,0.13591795,111490.0,111480.0,0.20657012]
[1760536602077,0.13591795,111490.0,111480.0,0.08969012]
[1760536602280,0.13591795,111490.0,111480.0,0.20657012]
[1760536602692,0.13591795,111490.0,111480.0,0.08969012]
[1760536602903,0.13591795,111490.0,111480.0,0.20657012]
[1760536604143,0.13591795,111490.0,111480.0,0.20757012]
[1760536604559,0.13591795,111490.0,111480.0,0.20753012]
[1760536604770,0.1883437,111500.0,111480.0,0.27009449]
[1760536604978,0.17938828,111490.0,111480.0,0.09069012]
[1760536605705,0.17938828,111490.0,111480.0,0.28438802]
[1760536605909,0.17938828,111490.0,111480.0,0.27009449]
[1760536606316,0.17938828,111490.0,111480.0,0.08969012]
[1760536606522,0.1883437,111500.0,111480.0,0.40075772]
[1760536606723,0.17938828,111490.0,111480.0,0.27009449]
[1760536607140,0.1883437,111500.0,111480.0,0.20653012]
[1760536607348,0.17938828,111490.0,111480.0,0.20753012]
[1760536607552,0.17938828,111490.0,111480.0,0.27009449]
[1760536607752,0.1883437,111500.0,111480.0,0.38693449]
[1760536607957,0.1883437,111500.0,111480.0,0.38593449]
[1760536608163,0.17938828,111490.0,111480.0,0.38593449]
[1760536608370,0.17938828,111490.0,111480.0,0.27009449]
[1760536608761,0.17938828,111490.0,111480.0,0.38693449]
[1760536608996,0.17938828,111490.0,111480.0,0.60753012]
[1760536609201,0.17938828,111490.0,111480.0,0.67009449]
[1760536609410,0.17938828,111490.0,111480.0,0.66909449]
[1760536609817,0.17938828,111490.0,111480.0,0.60753012]
[1760536610024,0.17938828,111490.0,111480.0,0.49069012]
[1760536610231,0.1883437,111500.0,111480.0,0.66909449]
[1760536610435,0.5283437,111500.0,111490.0,0.17938828]
[1760536610646,0.5283437,111500.0,111490.0,0.08969012]
[1760536610851,0.5283437,111500.0,111490.0,0.20653012]
[1760536611104,0.5283437,111500.0,111490.0,0.08969012]
[1760536611358,0.17935661,111510.0,111490.0,0.28401555]
[1760536611634,0.51935661,111510.0,111500.0,0.20649012]
[1760536611903,0.51935661,111510.0,111500.0,0.08969012]
[1760536612111,0.51935661,111510.0,111500.0,0.20649012]
[1760536612329,0.51935661,111510.0,111500.0,0.48969012]
[1760536612560,0.51935661,111510.0,111500.0,0.08969012]
[1760536612990,0.51935661,111510.0,111500.0,0.20649012]
[1760536613170,0.51935661,111510.0,111500.0,0.08969012]
[1760536613829,0.17935661,111510.0,111500.0,0.27006231]
[1760536614041,0.17935661,111510.0,111500.0,0.38686231]
[1760536614252,0.17935611,111510.0,111500.0,0.27903091]
[1760536614670,0.17935611,111510.0,111500.0,0.09069012]
[1760536614877,0.17935611,111510.0,111500.0,0.10288759]
[1760536615094,0.17935611,111510.0,111500.0,0.21968759]
[1760536615301,0.51935611,111510.0,111500.0,0.27106231]
[1760536615518,0.51935611,111510.0,111500.0,0.09169012]
[1760536616139,0.34,111510.0,111500.0,0.09269012]
[1760536616346,0.51935611,111510.0,111500.0,0.09269012]
[1760536616756,0.51935611,111510.0,111500.0,0.27206231]
[1760536616962,0.52837878,111530.0,111510.0,0.17935611]
[1760536617178,0.0001501,111530.0,111520.0,0.38579014]
[1760536617391,0.0001501,111530.0,111520.0,0.26903014]
[1760536617606,0.17947404,111530.0,111520.0,0.26903014]
[1760536617812,0.0001501,111530.0,111520.0,0.26903014]
[1760536618702,0.17947404,111530.0,111520.0,0.26903014]
[1760536618912,0.17947404,111530.0,111520.0,0.67103014]
[1760536619124,0.17947404,111530.0,111520.0,0.49169012]
[1760536619332,0.17947404,111530.0,111520.0,0.78779014]
[1760536619746,0.0001501,111530.0,111520.0,0.67103014]
[1760536619959,0.0001501,111530.0,111520.0,0.67203014]
[1760536620178,0.0001501,111530.0,111520.0,0.78679014]
[1760536620448,0.0001501,111530.0,111520.0,0.67003014]
[1760536620667,0.17947404,111530.0,111520.0,0.67203014]
[1760536620875,0.17947404,111530.0,111520.0,0.78879014]
[1760536621082,0.17947404,111530.0,111520.0,0.67203014]
[1760536621496,0.17947404,111530.0,111520.0,0.60945012]
[1760536621711,0.17947404,111530.0,111520.0,0.49269012]
[1760536621926,0.51947404,111530.0,111520.0,0.09269012]
[1760536622132,0.51947404,111530.0,111520.0,0.20941012]
[1760536622337,0.51947404,111530.0,111520.0,0.09269012]
[1760536622553,0.51947404,111530.0,111520.0,0.09169012]
[1760536622943,0.51947404,111530.0,111520.0,0.20941012]
[1760536623175,0.51947404,111530.0,111520.0,0.09269012]
[1760536623395,0.51947404,111530.0,111520.0,0.09169012]
[1760536623607,0.51947404,111530.0,111520.0,0.20841012]
[1760536623822,0.51947404,111530.0,111520.0,0.20641012]
[1760536624038,0.17937219,111500.0,111480.0,0.17939672]
[1760536624225,0.17938828,111490.0,111480.0,0.17939672]
[1760536624488,0.17938828,111490.0,111480.0,0.78581449]
[1760536624957,0.17938828,111490.0,111480.0,0.48969012]
[1760536625156,0.17937219,111500.0,111480.0,0.67109449]
[1760536625378,0.1853696,111510.0,111490.0,0.3857984]
[1760536625597,0.1853696,111510.0,111490.0,0.08969012]
[1760536625598,0.17940328,111500.0,111490.0,0.08969012]
[1760536626010,0.17940328,111500.0,111490.0,0.20641012]
[1760536626436,0.17940328,111500.0,111490.0,0.08969012]
[1760536626646,0.51938828,111490.0,111480.0,0.003]
[1760536626854,0.51938828,111490.0,111480.0,0.20841012]
[1760536627071,0.51938828,111490.0,111480.0,0.09169012]
[1760536627273,0.17943656,111460.0,111450.0,0.70865686]
[1760536627480,0.17943475,111470.0,111460.0,0.17943656]
[1760536627683,0.17943475,111470.0,111460.0,0.20641012]
[1760536627897,0.17943475,111470.0,111460.0,0.20637012]
[1760536628106,0.51943475,111470.0,111460.0,0.20637012]
[1760536628314,0.51943475,111470.0,111460.0,0.08969012]
[1760536628550,0.34,111470.0,111460.0,0.28401955]
[1760536628777,0.34,111470.0,111460.0,0.27112668]
[1760536629005,0.51942047,111470.0,111460.0,0.27112668]
[1760536629231,0.51942047,111470.0,111460.0,0.38780668]
[1760536629458,0.51942047,111470.0,111460.0,0.27112668]
[1760536629685,0.51942047,111470.0,111460.0,0.38880668]
[1760536630153,0.23942746,111550.0,111480.0,0.00897021]
[1760536630363,0.02467959,111560.0,111530.0,0.18828818]
[1760536630612,0.09963365,111590.0,111550.0,0.65911999]
[1760536630842,0.02963365,111590.0,111560.0,0.76680602]
[1760536631056,0.01963365,111590.0,111570.0,0.4708647]
[1760536631310,0.01963365,111590.0,111580.0,0.20637012]
[1760536631527,0.01963365,111590.0,111580.0,0.38561371]
[1760536631807,0.02013449,111590.0,111580.0,0.26893371]
[1760536632063,0.19936201,111590.0,111580.0,0.20637012]
[1760536632293,0.19936201,111590.0,111580.0,0.01671224]
[1760536632548,0.53936201,111590.0,111580.0,0.13339224]
[1760536632780,0.53936201,111590.0,111580.0,0.13639224]
[1760536632985,0.53936201,111590.0,111580.0,0.01971224]
[1760536633204,0.36013449,111590.0,111580.0,0.31463583]